Cogmind - Beta 16.1 @@@ ROGUE MODE // 2026.03.27 @ 18:47:34 Player: Jiber Result: Destroyed by as-73692 with Assembled Blade Performance ------------- Evolutions (0) 0 Regions Visited (2) 400 Robots Destroyed (2) 10 Value Destroyed (14) 14 Prototype IDs (0) 0 Alien Tech Used (0) 0 Bonus (0) 0 TOTAL SCORE: 424 Bonus ------- None Cogmind --------- Core Integrity 0/250 Matter 289/300 Energy 99/100 System Corruption 20% Temperature Cool (0) Movement Core (50) Location -10/Mines Parts ------- > --- POWER (1) -------- (None) > --- PROPULSION (2) --- (None) > --- UTILITY (2) ------ (None) > --- WEAPON (2) ------- (None) > --- INVENTORY (5) ---- Small Matter Pod (49) Peak State ------------ > --- POWER ------------ Ion Engine > --- PROPULSION ------- Aluminum Leg Aluminum Leg > --- UTILITY ---------- Small Storage Unit Improved Terrain Scanner > --- WEAPON ----------- EM Pulse Gun Medium Laser > --- INVENTORY -------- Ion Engine Compact Wheel Compact Wheel Assault Rifle [Rating: 9] Favorites ----------- Power Ion Engine Engine Ion Engine Propulsion Aluminum Leg Leg Aluminum Leg Wheel Compact Wheel Utility Small Storage Unit Device Improved Terrain Scanner Storage Small Storage Unit Protection Propulsion Shielding Weapon EM Pulse Gun Energy Gun EM Pulse Gun Energy Cannon Beam Cannon Ballistic Gun Assault Rifle Build | -11 -10 -10 ------- Run | Yrd Mat Min Slots Evolved . | . . . Power . | . . . Propulsion . | . . . Utility . | . . . Weapon . | . . . Parts Attached 13 | 7 . 6 Power 2 | 1 . 1 Engine 2 | 1 . 1 Core . | . . . Reactor . | . . . Propulsion 4 | 2 . 2 Treads . | . . . Leg 3 | 2 . 1 Wheel 1 | . . 1 Hover . | . . . Flight . | . . . Utility 3 | 2 . 1 Device 1 | 1 . . Storage 1 | 1 . . Processor . | . . . Hackware . | . . . Protection 1 | . . 1 Artifact . | . . . Weapon 4 | 2 . 2 Energy Gun 2 | 2 . . Energy Cannon 1 | . . 1 Ballistic Gun 1 | . . 1 Ballistic Cannon . | . . . Launcher . | . . . Special Weapon . | . . . Impact Weapon . | . . . Slashing Weapon . | . . . Piercing Weapon . | . . . Special Melee Weapon . | . . . Unidentified Prototypes . | . . . Parts Lost 9 | . . 9 Power 2 | . . 2 Propulsion 3 | . . 3 Utility 1 | . . 1 Weapon 3 | . . 3 Highest Loss Streak 5 | . . 5 To Critical Strikes . | . . . Average Backups 3 | 3 4 4 Power . | . 1 . Propulsion 1 | 2 2 1 Utility . | . . 1 Weapon . | . 1 . Tool/Special . | . . . Unused Backups 2 | . . 2 Power . | . . . Propulsion 1 | . . 1 Utility 1 | . . 1 Weapon . | . . . Tool/Special . | . . . Average Slot Usage (%) 95 | . 100 91 Engine 14 | . 14 14 Leg 24 | . 28 20 Wheel 2 | . . 5 Device 10 | . 14 6 Storage 14 | . 14 14 Protection 1 | . . 3 Energy Gun 21 | . 28 14 Energy Cannon 3 | . . 7 Ballistic Gun 2 | . . 5 Peak Build Rating 9 | 9 9 9 Average Rating 7 | 4 9 7 On Entrance 6 | . 9 9 Avg Prop Armor Cover (%) 9 | . . 9 Naked Turns 5 | . . 5 Heaviest Build 16 | 15 15 16 Greatest Support 20 | 20 20 20 Greatest Overweight (x) 4 | . . 4 Average Overweight (x) . | . . . Largest Inventory Capacity 8 | 8 8 8 Average Capacity 7 | 6 8 7 Most Carried 7 | 5 4 7 Average Carried 3 | 3 4 4 Final Capacity 8 | 8 8 5 Final Carried 4 | 4 4 1 Class Distribution -------------------- 100% | Mutant Dominant Class ---------------- Mutant | -10/Materials Mutant | -10/Mines Resources | -11 -10 -10 ----------- Run | Yrd Mat Min Matter Collected 406 | 257 . 149 Remotely . | . . . Salvage Created 169 | 41 . 128 Parts 4 | 4 . . Haulers Intercepted . | . . . Recyclers Shooed . | . . . Parts Field Recycled . | . . . Retrieved Matter . | . . . Parts Self-Destructed . | . . . Prevented . | . . . Parts Restored . | . . . Kills | -11 -10 -10 ------- Run | Yrd Mat Min Combat Hostiles Destroyed 9 | . . 9 Guns 8 | . . 8 Cannons 1 | . . 1 Classes Destroyed 2 | 1 . 1 Tunneler 2 | 2 . . Assembled 9 | . . 9 Best Kill Streak 4 | 2 . 4 Combat Bots Only 4 | . . 4 Max Kills in Single Turn 1 | 1 . 1 Gunslinging . | . . . Exploded . | . . . Melee . | . . . Uniques/NPCs Destroyed . | . . . Combat | -11 -10 -10 -------- Run | Yrd Mat Min Hostile Shots Fired 68 | . . 68 Missed 11 | . . 11 Hits 57 | . . 57 Melee 26 | . . 26 Projectile 31 | . . 31 Critical Strikes 1 | . . 1 Damage Taken 1170 | . . 1170 Core 279 | . . 279 Absorbed by Shields . | . . . Redirected to Shielding 34 | . . 34 Core Remaining (%) 100 | 100 . . Volleys Fired 46 | 4 . 42 Largest 2 | 2 . 2 Hottest 110 | 90 . 110 Shots Fired 61 | 8 . 53 Gun 57 | 8 . 49 Cannon 4 | . . 4 Launcher . | . . . Special . | . . . Kinetic 27 | . . 27 Thermal 21 | 4 . 17 Explosive . | . . . Electromagnetic 13 | 4 . 9 Robot Hit Streak 5 | 2 . 5 Robot Miss Streak 8 | 2 . 8 Penetration Max . | . . . Secondary Targets . | . . . Shots Hit Robots 24 | 4 . 20 Core Hits 24 | 2 . 22 Critical Kills 1 | . . 1 Critical Parts Destroyed . | . . . Critical Strikes 3 | 1 . 2 Burn 2 | 1 . 1 Destroy 1 | . . 1 Melee Attacks . | . . . Impact . | . . . Slashing . | . . . Piercing . | . . . Sneak Attacks . | . . . Combat Hostiles . | . . . Follow-up Attacks . | . . . Damage Inflicted 368 | 52 . 316 Guns 318 | 52 . 266 Cannons 35 | . . 35 Explosions . | . . . Melee . | . . . Ramming 15 | . . 15 Kinetic 150 | . . 150 Thermal 122 | 13 . 109 Explosive . | . . . Electromagnetic 81 | 39 . 42 Impact . | . . . Slashing . | . . . Piercing . | . . . Highest Corruption 20 | . . 20 Average Corruption 16 | . . 16 Corruption Purged . | . . . Corruption Blocked . | . . . Effects 13 | . . 13 Message Errors 2 | . . 2 Matter Fused 3 | . . 3 Heat Flow Errors 1 | . . 1 Energy Discharges 1 | . . 1 Parts Rejected 1 | . . 1 Data Loss (major) 1 | . . 1 Misdirections 2 | . . 2 Weapon Failures 2 | . . 2 Overload Shots . | . . . Overflow Damage . | . . . Projectiles . | . . . Explosions . | . . . Melee . | . . . Knockbacks . | . . . Impact . | . . . Kinetic . | . . . Secondary . | . . . Self-Inflicted Damage 5 | . . 5 Shots . | . . . Rammed 8 | . . 8 Targets Rammed 10 | . 1 9 Kicked 2 | . 1 1 Crushed . | . . . Highest Temperature 388 | 120 . 388 Average Temperature 142 | 61 . 160 Received Heat Transfer . | . . . Effects 4 | . . 4 Shutdowns 1 | . . 1 Energy Bleed 2 | . . 2 Short Circuit 1 | . . 1 Siege Activations . | . . . Martial Activations . | . . . Shielding Activations . | . . . Robots Disrupted . | . . . Combat Hostiles . | . . . Robots Corrupted . | . . . Combat Hostiles . | . . . Parts Fried . | . . . Impact Corruptions . | . . . Robots Melted . | . . . Combat Hostiles . | . . . Parts Melted 2 | 2 . . Heat Transferred 481 | 111 . 370 Parts Sabotaged . | . . . Parts Stolen . | . . . Parts Stripped . | . . . Power Chain Reactions . | . . . Alert | -11 -10 -10 ------- Run | Yrd Mat Min Maximum Alert Level . | . . . Low Security (%) 100 | 100 100 100 Level 1 . | . . . Level 2 . | . . . Level 3 . | . . . Level 4 . | . . . Level 5 . | . . . High Security . | . . . Max Security . | . . . Peak Influence 10 | 10 10 . Initial . | . . . Average . | 1 . . Influence Increases 20 | 10 10 . Destroy 0b10 Robot/NC 10 | 10 . . Successful Hack 10 | . 10 . Influence Decreases 20 | 10 10 . Time Decay 20 | 10 10 . Squads Dispatched . | . . . Investigation . | . . . Extermination . | . . . Reinforcement . | . . . Assault . | . . . Garrison . | . . . Intercept . | . . . Searches Triggered . | . . . Construction Impeded . | . . . Haulers Reinforced . | . . . Active Scanning Responses . | . . . Cargo Convoy Interrupts . | . . . Stealth | -11 -10 -10 --------- Run | Yrd Mat Min Distress Signals 1 | . . 1 Communications Jammed . | . . . Distress Signals . | . . . Times Spotted 15 | . 3 12 Peak Tracking Total 4 | . 3 4 Tactical Retreats . | . . . Traps | -11 -10 -10 ------- Run | Yrd Mat Min Traps Triggered . | . . . Indirectly . | . . . Trap Hack Attempts . | . . . Triggered . | . . . Disarmed . | . . . Reprogrammed . | . . . Reused . | . . . Traps Extracted . | . . . Installed . | . . . Triggered . | . . . Machines | -11 -10 -10 ---------- Run | Yrd Mat Min Machines Disabled . | . . . Max in Single Turn . | . . . Machines Repaired . | . . . Machines Dismantled . | . . . Machines Sabotaged . | . . . Overloaded Fab Kills . | . . . Hacking | -11 -10 -10 --------- Run | Yrd Mat Min Machines Accessed 1 | . 1 . Terminals 1 | . 1 . Fabricators . | . . . Repair Stations . | . . . Recycling Units . | . . . Scanalyzers . | . . . Garrison Access . | . . . Total Hacks 3 | . 3 . Successful 2 | . 2 . Failed 1 | . 1 . Catastrophic . | . . . Database Lockouts . | . . . Manual . | . . . Terminals 3 | . 3 . Fabricators . | . . . Repair Stations . | . . . Recycling Units . | . . . Scanalyzers . | . . . Garrison Access . | . . . Terminal Hacks 2 | . 2 . Transport Status 1 | . 1 . Hauler Manifests 1 | . 1 . Fabricator Hacks . | . . . Repair Station Hacks . | . . . Recycling Unit Hacks . | . . . Scanalyzer . | . . . Garrison Access Hacks . | . . . Unauthorized Hacks . | . . . Terminals . | . . . Fabricators . | . . . Repair Stations . | . . . Recycling Units . | . . . Scanalyzers . | . . . Garrison Access . | . . . Data Cores Recovered . | . . . Used . | . . . Hacking Detections 1 | . 1 . Full Trace Events 1 | . 1 . Feedback Events . | . . . Feedback Blocked . | . . . Robot Schematics Acquired . | . . . Robots Built . | . . . Authchips . | . . . Time . | . . . Total Robot Build Rating . | . . . Part Schematics Acquired . | . . . Parts Built . | . . . Authchips . | . . . Time . | . . . Total Part Build Rating . | . . . Part Studies Acquired . | . . . Parts Repaired . | . . . Time . | . . . Parts Recycled . | . . . Recycled Matter . | . . . Retrieved Matter . | . . . Retrieved Components . | . . . Parts Scanalyzed . | . . . Part Schematics Acquired . | . . . Parts Damaged . | . . . Bothacking | -11 -10 -10 ------------ Run | Yrd Mat Min Used RIF Installer . | . . . Robots Hacked . | . . . Non-combat . | . . . Combat . | . . . Robot Hacks Applied . | . . . Relay Couplers Released . | . . . Fabnet Peak Effective % . | . . . Robots Rewired . | . . . Allies Hacked . | . . . Hacks Repelled . | . . . Allies | -11 -10 -10 -------- Run | Yrd Mat Min Total Allies . | . . . Largest Group . | . . . Highest-Rated Group . | . . . Highest-Rated Ally . | . . . Total Orders . | . . . Ally Attacks . | . . . Total Damage . | . . . Kills . | . . . Allies Corrupted . | . . . Allies Melted . | . . . Intel | -11 -10 -10 ------- Run | Yrd Mat Min Active Infowar (turns) 467 | 19 308 140 Terrain 467 | 19 308 140 Robot Analysis Total . | . . . Derelict Logs Recovered 1 | . . 1 Drone Launches . | . . . Drone Recoveries . | . . . Exploration | -11 -10 -10 ------------- Run | Yrd Mat Min Turns Passed 735 | 117 308 310 Spaces Moved 385 | 95 122 168 Core 49 | 37 . 12 Treads . | . . . Legs 276 | 58 122 96 Wheels 60 | . . 60 Hover . | . . . Flight . | . . . Fastest Speed 50 | 50 120 50 Average Speed 109 | 92 120 110 Slowest Speed 250 | 120 120 250 Overloaded Moves . | . . . Propulsion Burnouts . | . . . Robots Hopped . | . . . Potential Cave-ins . | . . . Cave-ins Triggered . | . . . Exploration Rate (%) 19 | 4 23 31 Regions Visited 2 Branch Regions 1 Pre-discovered Areas . | . . . Known Exits Taken . | . . . Unknown Exits Taken 2 | 1 1 . Scrap Searched 1 | . . 1 Spaces Dug . | . . . Terrain Destroyed . | . . . Melee . | . . . Projectile . | . . . AOE . | . . . Terrain Rammed . | . . . Walls Destroyed . | . . . Machines Disabled . | . . . Actions | -11 -10 -10 --------- Run | Yrd Mat Min Total 631 | 116 283 232 Wait 161 | . 161 . Move 383 | 94 121 168 Hop . | . . . Pick Up 16 | 11 . 5 Fast Attach . | . . . Attach 14 | 7 . 7 Detach . | . . . Swap . | . . . Drop 1 | . . 1 Fire 46 | 4 . 42 Melee . | . . . Ram 8 | . . 8 Kick 2 | . 1 1 Crush . | . . . Escape Stasis . | . . . Rewire . | . . . Trap . | . . . Miscellaneous . | . . . Route ------- -11/Scrapyard -10/Materials -10/Mines History --------- Turn | Location | Event 12 | -11/Scrapyard | Discovered new exit (range 15) 118 | -11/Scrapyard | Entered Materials 310 | -10/Materials | Build established: Mutant 356 | -10/Materials | Discovered new exit (range 14) 426 | -10/Materials | Entered Mines 472 | -10/Mines | Found DCF Scrap (13 items) 521 | -10/Mines | Learned location of 1 exit from Materials 529 | -10/Mines | Assembled infested the area 586 | -10/Mines | System corruption reached 10% 616 | -10/Mines | Lost 5 parts (2n1u2w) 660 | -10/Mines | Core integrity fell below 50% 724 | -10/Mines | Core integrity fell below 20% 731 | -10/Mines | Released all parts (4) 736 | -10/Mines | Destroyed by as-73692 with Assembled Blade Last Messages --------------- 00705_ Assault Rifle destroyed. 00714_ Slammed into as-23463. 00716_ Com. Wheel destroyed. 00716_ System corrupted by crushing effect (+2). 00716_ Destabilizing: Core damaged (-12). 00718_ Slammed into as-23463. 00721_ Ion Engine destroyed. 00721_ Slammed into as-23463. 00721_ Aluminum Leg broken. 00721_ Destabilizing: Short circuit. 00722_ Slammed into as-23463. 00722_ Destabilizing: System corrupted (+1). 00724_ Slammed into as-23463. 00728_ System corrupted: Matter fused (-9). 00731_ Ion Engine destroyed. 00731_ Released Broken Beam Cannon. 00731_ Released Broken Aluminum Leg. 00731_ Released Sml. Storage Unit. 00731_ Released Propulsion Shielding. [Achievement: Live, Flee, And Rebuild] Map ----- +----------------------------------------------------+ | # ##????############ ##??????????#?????????? | | ## ##??#??# #??#?????????????????? | | ?# ##?????# #????????????????????? | | ## #??#???# ###### ##???????????????????? | | # ##???### =#????# #???????????????????? | | # ###?#*!* #????# #?????????#?????????? | | # """ ###%!= #??### ##???????????????????? | | ## """ [ #####?### ##????????????????????? | | ?# """ *=#?????## ####?????????????????????? | | ?# #######????## ##????????????????????????? | | ?# ##???#??????# ###?????????#??????????????? | | ?## ##???#????#?## ##?#????????????????????????? | | ??####????????#?## ##???????????????????????????? | | #???#??????????## ##???????????#???????????????? | | ?????????##????# ##?#??#???????????????????????? | | ???????#???????# #?????????????????????????????? | | ???????????#??## #?????????????????????????????? | | ??????????#???# #????#####????????????????????? | | ????????#?????# #???? ##???????????????????? | | ???????#??????# #???? ##??????????????????? | | ??????#???????## ##??? ???????????????????? | | ?????????????#### ##?? ????????????????????? | | ?????????######## ##?# < ?????????????????????? | | ??????#### ## ### #?????????????????????? | | ??????# ! ## #?????????????????????? | | ????????# !] #@ #?????????????????????? | | ????????# = a ##????????????????????? | | ????????# #????????????????????? | | ????????## #???????????????????? | | ?????????######### #??????????????????? | | ?????????????????## ## #?????????????????? | | ??????????????????# #?# #????????????????? | | ?????????????????# #?? #????????????????? | | ?????????????????# % ? #????????????????? | | ????????????????# a #???????????????? | | ??????????????? ## % #???????????????? | | ?????????????? ##?## #???????????????? | | ?????????????? ???? #???????????????? | | ?????????????? ????? # #???????????????? | | ??????????????? ????? # ## # ##???????????????? | | ????????????????????? ? ##????###????????????????? | | ??????????????????????? #????????????????????????? | | ?????????????????????????????????????????????????? | | ?????????????????????????????????????????????????? | | ?????????????????????????????????????????????????? | | ?????????????????????????????????????????????????? | | ?????????????????????????????????????????????????? | | ?????????????????????????????????????????????????? | | ?????????????????????????????????????????????????? | | ?????????????????????????????????????????????????? | +----------------------------------------------------+ Best States ------------- Heat Dissipation 25 Energy Generation 10 Energy Capacity 250 Matter Stores 300 Matter Capacity 300 Sight Range 16 Terrain Scan Range 16 Terrain Scan Density 10 Propulsion Shielding 33 Evasion (%) 55 Item Schematics ----------------- None Robot Schematics ------------------ None Fabricated ------------ Nothing Repaired ---------- Nothing Studied --------- None Alien Tech Used ----------------- None Achievements -------------- Live, Flee, And Rebuild Challenges ------------ None Game ------ Seed VampiricZhirovMultitool Manual? 0 Play Time 00:10:37 Cumulative 21.7 hours Start 2026.03.27 @ 18:29:38 End 2026.03.27 @ 18:47:34 Sessions 1 Manual Loads 0 Difficulty Rogue Special Mode None Game No. 35 Rogue 35 Adventurer 0 Explorer 0 Win Type - Total 0 Types 0/0/0/0/0/0/0/0/0/0 Lore% 10 Gallery% 22 Achievement% 30 Wizard Run 0 Options --------- Layout 1 ASCII 0 Keyboard 1 Movement Arrows Keybinds 0 Fullscreen 1 Font 24/Smallcaps Map View 50x35 Zoom Use 0% Tactical HUD 1 Map Filters NONE Filters NONE Steam 1 RUN: 9e939b47-2eec-467f-97a8-9296c5942d86